fUSD/lending_fUSD_20240223
["ID","MTS","AMOUNT","RATE_DAILY","PERIOD"]
[314955807,1708697446625,-500.0,0.00027397,2]
[314955808,1708697446634,-500.0,0.00027397,2]
[314955809,1708697446643,-500.0,0.00027397,2]
[314955810,1708697446652,-503.67903093,0.00027397,2]
[314955811,1708697446661,-500.0,0.00027397,2]
[314955812,1708697446670,-500.0,0.00027397,2]
[314955813,1708697446679,-512.36718029,0.00027397,2]
[314955814,1708697446688,-514.22822762,0.00027397,2]
[314955815,1708697446697,-507.35768577,0.00027397,2]
[314955816,1708697446706,-511.14949549,0.00027397,2]
[314955817,1708697446714,-508.20716793,0.00027397,2]
[314955818,1708697446723,-505.38294839,0.00027397,2]
[314955819,1708697446732,-500.0,0.00027397,2]
[314955820,1708697446741,-500.0,0.00027397,2]
[314955821,1708697446750,-500.0,0.00027397,2]
[314955822,1708697446759,-500.0,0.00027397,2]
[314955823,1708697446768,-500.0,0.00027397,2]
[314955824,1708697446780,-500.0,0.00027397,2]
[314955825,1708697446789,-512.57661183,0.00027397,2]
[314955826,1708697446798,-510.36648175,0.00027397,2]
[314955827,1708697446808,-500.0,0.00027397,2]
[314955828,1708697446818,-500.0,0.00027397,2]
[314955829,1708697446827,-302.29765946,0.00027397,2]
[314955830,1708697446836,-500.0,0.00027397,2]
[314955831,1708697446847,-506.8988402,0.00027397,2]
[314955832,1708697446856,-500.0,0.00027397,2]
[314955833,1708697446866,-510.13743897,0.00027397,2]
[314955834,1708697446875,-500.0,0.00027397,2]
[314955835,1708697446884,-500.0,0.00027397,2]
[314955836,1708697446893,-500.0,0.00027397,2]
[314955837,1708697446902,-500.0,0.00027397,2]
[314955838,1708697446911,-507.76942677,0.00027397,2]
[314955839,1708697446921,-500.0,0.00027397,2]
[314955840,1708697446930,-500.0,0.00027397,2]
[314955841,1708697446938,-508.74945498,0.00027397,2]
[314955842,1708697446947,-500.0,0.00027397,2]
[314955843,1708697446957,-507.2717919,0.00027397,2]
[314955844,1708697446966,-500.0,0.00027397,2]
[314955845,1708697446976,-502.89701897,0.00027397,2]
[314955846,1708697446986,-500.0,0.00027397,2]
[314955847,1708697446995,-500.0,0.00027397,2]
[314955848,1708697447004,-500.0,0.00027397,2]
[314955849,1708697447014,-500.0,0.00027397,2]
[314955850,1708697447024,-500.0,0.00027397,2]
[314955851,1708697447033,-424.78169131,0.00027397,2]
[314955852,1708697447043,-500.0,0.00027397,2]
[314955853,1708697447052,-500.0,0.00027397,2]
[314955854,1708697447062,-507.97687238,0.00027397,2]
[314955855,1708697447071,-499.99831602,0.00027397,2]
[314955856,1708697447081,-500.0,0.00027397,2]
[314955857,1708697447090,-504.77655419,0.00027397,2]
[314955858,1708697447100,-500.0,0.00027397,2]
[314955859,1708697447110,-504.36360707,0.00027397,2]
[314955860,1708697447119,-500.0,0.00027397,2]
[314955861,1708697447128,-508.47265903,0.00027397,2]
[314955862,1708697447137,-507.78141552,0.00027397,2]
[314955863,1708697447146,-173.64773994,0.00027397,2]
[314955864,1708697447156,-500.0,0.00027397,2]
[314955865,1708697447165,-500.0,0.00027397,2]
[314955866,1708697447174,-500.0,0.00027397,2]
[314955867,1708697447184,-500.0,0.00027397,2]
[314955868,1708697447194,-500.0,0.00027397,2]
[314955869,1708697447204,-500.0,0.00027397,2]
[314955870,1708697447215,-540.16847661,0.00027397,2]
[314955871,1708697447226,-500.0,0.00027397,2]
[314955872,1708697447236,-500.0,0.00027397,2]
[314955873,1708697447246,-500.0,0.00027397,2]
[314955874,1708697447255,-500.0,0.00027397,2]
[314955875,1708697447265,-500.0,0.00027397,2]
[314955876,1708697447274,-500.0,0.00027397,2]
[314955877,1708697447283,-500.0,0.00027397,2]
[314955878,1708697447294,-500.0,0.00027397,2]
[314955879,1708697447304,-500.0,0.00027397,2]
[314955880,1708697447314,-500.0,0.00027397,2]
[314955881,1708697447324,-500.0,0.00027397,2]
[314955882,1708697447333,-590.14240089,0.00027397,2]
[314955883,1708697447343,-500.0,0.00027397,2]
[314955884,1708697447354,-500.0,0.00027397,2]
[314955885,1708697447363,-500.0,0.00027397,2]
[314955886,1708697447373,-500.0,0.00027397,2]
[314955887,1708697447383,-506.89446456,0.00027397,2]
[314955888,1708697447392,-500.0,0.00027397,2]
[314955889,1708697447402,-500.0,0.00027397,2]
[314955890,1708697447411,-500.0,0.00027397,2]
[314955891,1708697447420,-500.0,0.00027397,2]
[314955892,1708697447429,-504.34037448,0.00027397,2]
[314955893,1708697447437,-536.62865127,0.00027397,2]
[314955894,1708697447447,-500.0,0.00027397,2]
[314955895,1708697447456,-500.0,0.00027397,2]
[314955896,1708697447465,-500.0,0.00027397,2]
[314955897,1708697447474,-500.0,0.00027397,2]
[314955898,1708697447482,-500.0,0.00027397,2]
[314955899,1708697447491,-505.16947254,0.00027397,2]
[314955900,1708697447501,-500.0,0.00027397,2]
[314955901,1708697447510,-513.03284964,0.00027397,2]
[314955902,1708697447518,-508.94413877,0.00027397,2]
[314955903,1708697447527,-505.49221299,0.00027397,2]
[314955904,1708697447537,-500.0,0.00027397,2]
[314955905,1708697447546,-500.0,0.00027397,2]
[314955906,1708697447555,-256.41248205,0.00027397,2]
[314955907,1708697447564,-500.0,0.00027397,2]
[314955908,1708697447573,-500.0,0.00027397,2]
[314955909,1708697447582,-500.0,0.00027397,2]
[314955910,1708697447590,-500.0,0.00027397,2]
[314955911,1708697447600,-500.0,0.00027397,2]
[314955912,1708697447609,-500.0,0.00027397,2]
[314955913,1708697447618,-500.0,0.00027397,2]
[314955914,1708697447627,-500.0,0.00027397,14]
[314955915,1708697447637,-500.0,0.00027397,2]
[314955916,1708697447646,-500.0,0.00027397,2]
[314955917,1708697447655,-500.0,0.00027397,2]
[314955918,1708697447664,-500.0,0.00027397,2]
[314955919,1708697447673,-500.0,0.00027397,2]
[314955920,1708697447682,-500.0,0.00027397,2]
[314955921,1708697447691,-500.0,0.00027397,2]
[314955922,1708697447700,-266.90804221,0.00027397,2]
[314955923,1708697447709,-500.0,0.00027397,2]
[314955924,1708697447718,-500.0,0.00027397,2]
[314955925,1708697447727,-500.0,0.00027397,2]
[314955926,1708697447736,-500.0,0.00027397,2]
[314955927,1708697447745,-500.0,0.00027397,2]
[314955928,1708697447754,-500.0,0.00027397,2]
[314955929,1708697447763,-500.0,0.00027397,2]
[314955930,1708697447773,-500.0,0.00027397,2]
[314955931,1708697447783,-500.0,0.00027397,2]
[314955932,1708697447792,-503.54547426,0.00027397,2]
[314955933,1708697447801,-500.0,0.00027397,2]
[314955934,1708697447811,-500.0,0.00027397,2]
[314955935,1708697447820,-503.31647674,0.00027397,2]
[314955936,1708697447829,-500.0,0.00027397,2]
[314955937,1708697447838,-500.0,0.00027397,2]
[314955938,1708697447847,-509.97945097,0.00027397,2]
[314955939,1708697447857,-502.44607941,0.00027397,2]
[314955940,1708697447866,-500.0,0.00027397,2]
[314955941,1708697447875,-500.0,0.00027397,2]
[314955942,1708697447884,-500.0,0.00027397,2]
[314955943,1708697447894,-508.6008654,0.00027397,2]
[314955944,1708697447903,-500.0,0.00027397,2]
[314955945,1708697447912,-503.42697195,0.00027397,2]
[314955946,1708697447921,-503.79028892,0.00027397,2]
[314955947,1708697447930,-506.25582875,0.00027397,2]
[314955948,1708697447940,-500.0,0.00027397,2]
[314955949,1708697447950,-500.0,0.00027397,2]
[314955950,1708697447960,-500.0,0.00027397,2]
[314955951,1708697447969,-500.0,0.00027397,2]
[314955952,1708697447978,-500.0,0.00027397,2]
[314955953,1708697447988,-500.0,0.00027397,2]
[314955954,1708697447997,-500.0,0.00027397,2]
[314955955,1708697448007,-500.0,0.00027397,2]
[314955956,1708697448017,-500.0,0.00027397,2]
[314955957,1708697448026,-500.0,0.00027397,2]
[314955958,1708697448035,-500.0,0.00027397,2]
[314955959,1708697448044,-500.0,0.00027397,2]
[314955960,1708697448054,-500.0,0.00027397,2]
[314955961,1708697448063,-500.0,0.00027397,2]
[314955962,1708697448072,-500.0,0.00027397,2]
[314955963,1708697448082,-506.24165533,0.00027397,2]
[314955964,1708697448091,-500.0,0.00027397,2]
[314955965,1708697448102,-500.0,0.00027397,2]
[314955966,1708697448112,-500.0,0.00027397,2]
[314955967,1708697448121,-500.0,0.00027397,2]
[314955968,1708697448130,-500.0,0.00027397,2]
[314955969,1708697448140,-500.0,0.00027397,2]
[314955970,1708697448154,-500.0,0.00027397,2]
[314955971,1708697448167,-500.0,0.00027397,2]
[314955972,1708697448178,-500.0,0.00027397,2]
[314955973,1708697448189,-500.0,0.00027397,2]
[314955974,1708697448201,-500.0,0.00027397,2]
[314955975,1708697448215,-500.0,0.00027397,2]
[314955976,1708697448226,-500.0,0.00027397,2]
[314955977,1708697448236,-500.0,0.00027397,2]
[314955978,1708697448246,-500.0,0.00027397,2]
[314955979,1708697448256,-500.0,0.00027397,2]
[314955980,1708697448268,-634.79807188,0.00027397,2]
[314955981,1708697448278,-500.0,0.00027397,2]
[314955982,1708697448290,-621.97,0.00027397,2]
[314955983,1708697448300,-500.0,0.00027397,2]
[314955984,1708697448311,-500.0,0.00027397,2]
[314955985,1708697448322,-500.0,0.00027397,2]
[314955986,1708697448334,-500.0,0.00027397,2]
[314955987,1708697448345,-500.0,0.00027397,2]
[314955988,1708697448356,-500.0,0.00027397,2]
[314955989,1708697448368,-514.85,0.00027397,2]
[314955990,1708697448379,-506.63427858,0.00027397,2]
[314955991,1708697448390,-500.0,0.00027397,2]
[314955992,1708697448400,-500.0,0.00027397,2]
[314955993,1708697448411,-500.0,0.00027397,2]
[314955994,1708697448423,-500.0,0.00027397,2]
[314955995,1708697448435,-525.16912307,0.00027397,2]
[314955996,1708697448446,-500.0,0.00027397,2]
[314955997,1708697448456,-500.0,0.00027397,2]
[314955998,1708697448468,-500.0,0.00027397,2]
[314955999,1708697448479,-500.0,0.00027397,2]
[314956000,1708697448490,-516.50135405,0.00027397,2]
[314956001,1708697448501,-500.0,0.00027397,2]
[314956002,1708697448513,-500.0,0.00027397,2]
[314956003,1708697448525,-503.1415563,0.00027397,2]
[314956004,1708697448537,-500.0,0.00027397,2]
[314956005,1708697448549,-500.0,0.00027397,2]
[314956006,1708697448559,-505.83093997,0.00027397,2]
[314956007,1708697448570,-504.03844269,0.00027397,2]
[314956008,1708697448580,-500.0,0.00027397,2]
[314956009,1708697448591,-500.0,0.00027397,2]
[314956010,1708697448605,-500.0,0.00027397,2]
[314956011,1708697448616,-500.0,0.00027397,2]
[314956012,1708697448627,-500.0,0.00027397,2]
[314956013,1708697448638,-500.0,0.00027397,2]
[314956014,1708697448650,-612.73430136,0.00027397,2]
[314956015,1708697448661,-502.39637204,0.00027397,2]
[314956016,1708697448672,-500.0,0.00027397,2]
[314956017,1708697448682,-500.0,0.00027397,2]
[314956018,1708697448693,-500.0,0.00027397,2]
[314956019,1708697448704,-504.89407024,0.00027397,2]
[314956020,1708697448715,-500.0,0.00027397,2]
[314956021,1708697448727,-500.0,0.00027397,2]
[314956022,1708697448738,-503.16235639,0.00027397,2]
[314956023,1708697448749,-500.0,0.00027397,2]
[314956024,1708697448761,-500.0,0.00027397,2]
[314956025,1708697448773,-534.39774955,0.00027397,2]
[314956026,1708697448784,-500.0,0.00027397,2]
[314956027,1708697448796,-500.0,0.00027397,2]
[314956028,1708697448807,-500.0,0.00027397,2]
[314956029,1708697448819,-500.0,0.00027397,2]
[314956030,1708697448830,-507.69616905,0.00027397,2]
[314956031,1708697448841,-500.0,0.00027397,2]
[314956032,1708697448851,-509.10718144,0.00027397,2]
[314956033,1708697448861,-500.0,0.00027397,2]
[314956034,1708697448870,-502.32025382,0.00027397,2]
[314956035,1708697448880,-500.0,0.00027397,2]
[314956036,1708697448890,-500.0,0.00027397,2]
[314956037,1708697448901,-509.34031632,0.00027397,2]
[314956038,1708697448911,-500.0,0.00027397,2]
[314956039,1708697448922,-500.0,0.00027397,2]
[314956040,1708697448934,-500.0,0.00027397,2]
[314956041,1708697448944,-500.0,0.00027397,2]
[314956042,1708697448955,-500.0,0.00027397,2]
[314956043,1708697448965,-512.23179193,0.00027397,2]
[314956044,1708697448976,-504.65923249,0.00027397,2]
[314956045,1708697448986,-500.0,0.00027397,2]
[314956046,1708697448998,-500.0,0.00027397,2]
[314956047,1708697449009,-500.0,0.00027397,2]
[314956048,1708697449021,-500.0,0.00027397,2]
[314956049,1708697449032,-500.0,0.00027397,2]
[314956050,1708697449042,-500.0,0.00027397,2]
[314956051,1708697449052,-500.0,0.00027397,2]
[314956052,1708697449061,-500.0,0.00027397,2]
[314956053,1708697449071,-500.0,0.00027397,2]
[314956054,1708697449081,-600.25648969,0.00027397,2]
[314956055,1708697449091,-500.0,0.00027397,2]
[314956056,1708697449103,-500.0,0.00027397,2]
[314956057,1708697449113,-500.0,0.00027397,2]
[314956058,1708697449123,-500.0,0.00027397,2]
[314956059,1708697449134,-511.46959345,0.00027397,2]
[314956060,1708697449144,-152.22148763,0.00027397,2]
[314956061,1708697449155,-508.89095755,0.00027397,2]
[314956062,1708697449165,-500.0,0.00027397,2]
[314956063,1708697449176,-500.0,0.00027397,2]
[314956064,1708697449186,-500.0,0.00027397,2]
[314956065,1708697449196,-500.0,0.00027397,2]
[314956066,1708697449207,-533.81546878,0.00027397,2]
[314956067,1708697449218,-542.32530418,0.00027397,2]
[314956068,1708697449228,-500.0,0.00027397,2]
[314956069,1708697449239,-500.0,0.00027397,2]
[314956070,1708697449249,-500.0,0.00027397,2]
[314956071,1708697449259,-500.0,0.00027397,2]
[314956072,1708697449270,-525.13567176,0.00027397,2]
[314956073,1708697449280,-531.02662864,0.00027397,2]
[314956074,1708697449293,-500.0,0.00027397,2]
[314956075,1708697449303,-500.0,0.00027397,2]
[314956076,1708697449314,-500.0,0.00027397,2]
[314956077,1708697449323,-500.0,0.00027397,2]
[314956078,1708697449334,-521.75838673,0.00027397,2]
[314956079,1708697449344,-500.0,0.00027397,2]
[314956080,1708697449355,-522.47602298,0.00027397,2]
[314956081,1708697449365,-517.55545052,0.00027397,2]
[314956082,1708697449375,-500.0,0.00027397,2]
[314956083,1708697449387,-500.0,0.00027397,2]
[314956084,1708697449397,-506.78598609,0.00027397,2]
[314956085,1708697449406,-500.0,0.00027397,2]
[314956086,1708697449416,-500.0,0.00027397,2]
[314956087,1708697449426,-500.0,0.00027397,2]
[314956088,1708697449436,-500.0,0.00027397,2]
[314956089,1708697449447,-506.85353246,0.00027397,2]
[314956090,1708697449456,-500.0,0.00027397,2]
[314956091,1708697449466,-500.0,0.00027397,2]
[314956092,1708697449477,-500.0,0.00027397,2]
[314956093,1708697449487,-500.0,0.00027397,2]
[314956094,1708697449497,-500.0,0.00027397,2]
[314956095,1708697449507,-500.0,0.00027397,2]
[314956096,1708697449517,-500.0,0.00027397,2]
[314956097,1708697449527,-500.0,0.00027397,2]
[314956098,1708697449538,-500.0,0.00027397,2]
[314956099,1708697449548,-507.68674165,0.00027397,2]
[314956100,1708697449559,-500.0,0.00027397,2]
[314956101,1708697449569,-500.0,0.00027397,2]
[314956102,1708697449579,-546.07076667,0.00027397,2]
[314956103,1708697449589,-500.0,0.00027397,2]
[314956104,1708697449599,-512.49593999,0.00027397,2]
[314956105,1708697449609,-500.0,0.00027397,2]
[314956106,1708697449619,-500.0,0.00027397,2]
[314956107,1708697449629,-500.0,0.00027397,2]
[314956108,1708697449639,-500.0,0.00027397,2]
[314956109,1708697449649,-500.0,0.00027397,2]
[314956110,1708697449659,-500.0,0.00027397,2]
[314956111,1708697449670,-500.0,0.00027397,2]
[314956112,1708697449680,-500.0,0.00027397,2]
[314956113,1708697449690,-290.0,0.00027397,2]
[314956114,1708697449701,-500.0,0.00027397,2]
[314956115,1708697449711,-500.0,0.00027397,2]
[314956116,1708697449721,-500.0,0.00027397,2]
[314956117,1708697449731,-645.2050991,0.00027397,2]
[314956118,1708697449741,-500.0,0.00027397,2]
[314956119,1708697449752,-520.57670539,0.00027397,2]
[314956120,1708697449762,-282.8,0.00027397,2]
[314956121,1708697449772,-500.0,0.00027397,2]
[314956122,1708697449783,-500.0,0.00027397,2]
[314956123,1708697449794,-500.0,0.00027397,2]
[314956124,1708697449804,-500.0,0.00027397,2]
[314956125,1708697449814,-500.0,0.00027397,2]
[314956126,1708697449824,-500.0,0.00027397,2]
[314956127,1708697449834,-150.0,0.00027397,2]
[314956128,1708697449844,-500.0,0.00027397,2]
[314956129,1708697449855,-500.0,0.00027397,2]
[314956130,1708697449866,-500.0,0.00027397,2]
[314956131,1708697449876,-500.0,0.00027397,2]
[314956132,1708697449886,-500.0,0.00027397,2]
[314956133,1708697449896,-500.0,0.00027397,2]
[314956134,1708697449906,-566.97988643,0.00027397,2]
[314956135,1708697449916,-482.77895345,0.00027397,2]
[314956136,1708697449926,-500.0,0.00027397,2]
[314956137,1708697449937,-500.0,0.00027397,2]
[314956138,1708697449947,-537.28496716,0.00027397,2]
[314956139,1708697449958,-500.0,0.00027397,2]
[314956140,1708697449968,-500.0,0.00027397,2]
[314956141,1708697449978,-504.16984206,0.00027397,2]
[314956142,1708697449989,-500.0,0.00027397,2]
[314956143,1708697449999,-500.0,0.00027397,2]
[314956144,1708697450009,-507.78573516,0.00027397,2]
[314956145,1708697450019,-500.0,0.00027397,2]
[314956146,1708697450029,-500.0,0.00027397,2]
[314956147,1708697450039,-500.0,0.00027397,2]
[314956148,1708697450050,-500.0,0.00027397,2]
[314956149,1708697450060,-500.0,0.00027397,2]
[314956150,1708697450071,-500.0,0.00027397,2]
[314956151,1708697450081,-477.19812046,0.00027397,2]
[314956152,1708697450092,-500.0,0.00027397,2]
[314956153,1708697450103,-500.0,0.00027397,2]
[314956154,1708697450113,-511.08266233,0.00027397,2]
[314956155,1708697450123,-500.0,0.00027397,2]
[314956156,1708697450134,-164.68710711,0.00027397,2]
[314956157,1708697450144,-500.0,0.00027397,2]
[314956158,1708697450154,-500.0,0.00027397,2]
[314956159,1708697450164,-500.0,0.00027397,2]
[314956160,1708697450174,-531.34081885,0.00027397,2]
[314956161,1708697450185,-500.0,0.00027397,2]
[314956162,1708697450195,-500.0,0.00027397,2]
[314956163,1708697450206,-500.0,0.00027397,2]
[314956164,1708697450218,-527.84472782,0.00027397,2]
[314956165,1708697450228,-500.0,0.00027397,2]
[314956166,1708697450238,-507.97087577,0.00027397,2]
[314956167,1708697450248,-500.0,0.00027397,2]
[314956168,1708697450258,-500.0,0.00027397,2]
[314956169,1708697450268,-500.0,0.00027397,2]
[314956170,1708697450278,-500.0,0.00027397,2]
[314956171,1708697450288,-605.8791417,0.00027397,2]
[314956172,1708697450300,-500.0,0.00027397,2]
[314956173,1708697450311,-500.0,0.00027397,2]
[314956174,1708697450321,-500.0,0.00027397,2]
[314956175,1708697450331,-500.0,0.00027397,2]
[314956176,1708697450342,-500.0,0.00027397,2]
[314956177,1708697450353,-500.0,0.00027397,2]
[314956178,1708697450362,-500.0,0.00027397,2]
[314956179,1708697450373,-500.0,0.00027397,2]
[314956180,1708697450384,-500.0,0.00027397,2]
[314956181,1708697450394,-504.47318111,0.00027397,2]
[314956182,1708697450403,-500.0,0.00027397,2]
[314956183,1708697450414,-500.0,0.00027397,2]
[314956184,1708697450424,-500.0,0.00027397,2]
[314956185,1708697450434,-525.59814444,0.00027397,2]
[314956186,1708697450444,-500.0,0.00027397,2]
[314956187,1708697450454,-500.0,0.00027397,2]
[314956188,1708697450465,-500.0,0.00027397,2]
[314956189,1708697450475,-500.0,0.00027397,2]
[314956190,1708697450485,-500.0,0.00027397,2]
[314956191,1708697450495,-500.0,0.00027397,2]
[314956192,1708697450505,-522.36513389,0.00027397,2]
[314956193,1708697450515,-500.0,0.00027397,2]
[314956194,1708697450525,-500.0,0.00027397,2]
[314956195,1708697450535,-500.0,0.00027397,2]
[314956196,1708697450545,-395.06799657,0.00027397,2]
[314956197,1708697450555,-500.0,0.00027397,2]
[314956198,1708697450565,-508.32085946,0.00027397,2]
[314956199,1708697450575,-489.17150158,0.00027397,2]
[314956200,1708697450585,-500.0,0.00027397,2]
[314956201,1708697450596,-500.0,0.00027397,2]
[314956202,1708697450607,-518.2186984,0.00027397,2]
[314956203,1708697450617,-500.0,0.00027397,2]
[314956204,1708697450627,-500.0,0.00027397,2]
[314956205,1708697450637,-493.778283,0.00027397,2]
[314956206,1708697450647,-500.0,0.00027397,2]
[314956207,1708697450657,-500.0,0.00027397,2]
[314956208,1708697450667,-579.3226389,0.00027397,2]
[314956209,1708697450677,-500.0,0.00027397,2]
[314956210,1708697450687,-461.6450099,0.00027397,2]
[314956211,1708697450698,-500.0,0.00027397,2]
[314956212,1708697450708,-500.0,0.00027397,2]
[314956213,1708697450718,-500.0,0.00027397,2]
[314956214,1708697450728,-524.91015703,0.00027397,2]
[314956215,1708697450738,-504.54135406,0.00027397,2]
[314956216,1708697450748,-500.0,0.00027397,2]
[314956217,1708697450758,-502.40560353,0.00027397,2]
[314956218,1708697450768,-500.0,0.00027397,2]
[314956219,1708697450778,-308.70363642,0.00027397,2]
[314956220,1708697450789,-500.0,0.00027397,2]
[314956221,1708697450799,-502.20752314,0.00027397,2]
[314956222,1708697450809,-472.66692369,0.00027397,2]
[314956223,1708697450818,-500.77725923,0.00027397,2]
[314956224,1708697450828,-500.0,0.00027397,2]
[314956225,1708697450838,-500.0,0.00027397,2]
[314956226,1708697450849,-500.0,0.00027397,2]
[314956227,1708697450859,-500.0,0.00027397,2]
[314956228,1708697450869,-500.0,0.00027397,2]
[314956229,1708697450879,-500.0,0.00027397,2]
[314956230,1708697450890,-531.65499266,0.00027397,2]
[314956231,1708697450900,-501.88669171,0.00027397,2]
[314956232,1708697450910,-500.0,0.00027397,2]
[314956233,1708697450920,-506.98706137,0.00027397,2]
[314956234,1708697450930,-503.00472582,0.00027397,2]
[314956235,1708697450940,-500.0,0.00027397,2]
[314956236,1708697450950,-500.0,0.00027397,2]
[314956237,1708697450960,-510.08858088,0.00027397,2]
[314956238,1708697450971,-505.20075307,0.00027397,2]
[314956239,1708697450981,-500.0,0.00027397,2]
[314956240,1708697450992,-513.04310261,0.00027397,2]
[314956241,1708697451002,-524.39545797,0.00027397,2]
[314956242,1708697451013,-500.0,0.00027397,2]
[314956243,1708697451023,-500.0,0.00027397,2]
[314956244,1708697451034,-500.0,0.00027397,2]
[314956245,1708697451044,-522.67510784,0.00027397,2]
[314956246,1708697451054,-500.0,0.00027397,2]
[314956247,1708697451065,-500.0,0.00027397,2]
[314956248,1708697451075,-500.0,0.00027397,2]
[314956249,1708697451085,-500.58171767,0.00027397,2]
[314956250,1708697451096,-500.0,0.00027397,2]
[314956251,1708697451106,-507.98909829,0.00027397,2]
[314956252,1708697451117,-500.0,0.00027397,2]
[314956253,1708697451127,-536.08541734,0.00027397,2]
[314956254,1708697451138,-500.0,0.00027397,2]
[314956255,1708697451149,-500.0,0.00027397,2]
[314956256,1708697451159,-500.0,0.00027397,2]
[314956257,1708697451169,-502.71714767,0.00027397,2]
[314956258,1708697451179,-501.76119845,0.00027397,2]
[314956259,1708697451190,-500.0,0.00027397,2]
[314956260,1708697451201,-527.45771808,0.00027397,2]
[314956261,1708697451211,-500.0,0.00027397,2]
[314956262,1708697451224,-500.0,0.00027397,2]
[314956263,1708697451605,-500.0,0.00027397,2]
[314956264,1708697451627,-525.84441436,0.00027397,2]
[314956265,1708697451648,-500.0,0.00027397,2]
[314956266,1708697451663,-502.68972162,0.00027397,2]
[314956267,1708697451672,-553.16637052,0.00027397,2]
[314956268,1708697451681,-500.0,0.00027397,2]
[314956269,1708697451691,-473.85459898,0.00027397,2]
[314956270,1708697451700,-500.0,0.00027397,2]
[314956271,1708697451709,-500.0,0.00027397,2]
[314956272,1708697451718,-505.22169709,0.00027397,2]
[314956273,1708697451728,-500.0,0.00027397,2]
[314956274,1708697451736,-502.69895148,0.00027397,2]
[314956275,1708697451745,-505.99260638,0.00027397,2]
[314956276,1708697451754,-504.99045797,0.00027397,2]
[314956277,1708697451763,-500.0,0.00027397,2]
[314956278,1708697451772,-500.0,0.00027397,2]
[314956279,1708697451781,-516.96861173,0.00027397,2]
[314956280,1708697451790,-500.0,0.00027397,2]
[314956281,1708697451799,-500.0,0.00027397,2]
[314956282,1708697451808,-500.0,0.00027397,2]
[314956283,1708697451817,-500.0,0.00027397,2]
[314956284,1708697451826,-500.0,0.00027397,2]
[314956285,1708697451835,-500.0,0.00027397,2]
[314956286,1708697451844,-500.0,0.00027397,2]
[314956287,1708697451853,-500.0,0.00027397,2]
[314956288,1708697451862,-500.0,0.00027397,2]
[314956289,1708697451871,-500.0,0.00027397,2]
[314956290,1708697451880,-161.73388862,0.00027397,2]
[314956291,1708697451889,-505.15775322,0.00027397,2]
[314956292,1708697451899,-500.0,0.00027397,2]
[314956293,1708697451908,-512.2074914,0.00027397,2]
[314956294,1708697451917,-500.0,0.00027397,2]
[314956295,1708697451926,-500.87908925,0.00027397,2]
[314956296,1708697451943,-511.09228855,0.00027397,2]
[314956297,1708697451955,-435.58007545,0.00027397,2]
[314956298,1708697451965,-500.0,0.00027397,2]
[314956299,1708697451974,-249.0102764,0.00027397,2]
[314956300,1708697451983,-508.23145099,0.00027397,2]
[314956301,1708697451993,-500.0,0.00027397,2]
[314956302,1708697452002,-500.0,0.00027397,2]
[314956303,1708697452012,-565.44214804,0.00027397,2]
[314956304,1708697452022,-819.55353206,0.00027397,2]
[314956305,1708697452031,-500.0,0.00027397,2]
[314956306,1708697452041,-500.0,0.00027397,2]